bitfinex/quotes_SOLUSD_20250621
["timestamp","ask_amount","ask_price","bid_price","bid_amount"]
[1750467356773,23.09126043,140.03,140.01,24.9982144]
[1750467358666,6.29126043,140.03,140.01,24.9982144]
[1750467360169,6.29126043,140.03,140.02,13.42183688]
[1750467360977,0.73,140.04,140.02,13.42183688]
[1750467361175,6.29126043,140.03,140.02,13.42183688]
[1750467363176,0.73,140.04,140.02,13.42183688]
[1750467363378,6.29126043,140.03,140.02,13.42183688]
[1750467364375,7.02126043,140.03,140.02,13.42183688]
[1750467366153,0.73,140.03,140.02,13.42183688]
[1750467366349,7.02126043,140.03,140.02,13.42183688]
[1750467379208,0.73,140.03,140.02,13.42183688]
[1750467379386,7.02126043,140.03,140.02,13.42183688]
[1750467386823,17.53,140.06,140.02,31.67642908]
[1750467387009,6.29126043,140.05,140.03,0.4]
[1750467387495,6.29126043,140.04,140.03,0.4]
[1750467387691,6.29126043,140.04,140.02,31.27642908]
[1750467388483,6.29126043,140.03,140.02,31.27642908]
[1750467393917,7.01126043,140.03,140.02,31.27642908]
[1750467395494,6.29126043,140.03,140.02,31.27642908]
[1750467395797,0.72,140.05,140.02,31.67642908]
[1750467396004,6.29126043,140.04,140.02,31.67642908]
[1750467396387,6.29126043,140.03,140.02,31.67642908]
[1750467397405,6.29126043,140.04,140.02,31.67642908]
[1750467399100,6.29126043,140.06,140.03,0.4]
[1750467399824,6.29126043,140.06,140.02,66.98561348]
[1750467400427,6.29126043,140.06,140.04,25.39285917]
[1750467402024,6.29126043,140.05,140.04,25.39285917]
[1750467404000,16.8,140.06,140.04,17.85204227]
[1750467404200,6.29126043,140.06,140.05,0.4]
[1750467404730,6.29126043,140.07,140.05,0.4]
[1750467405637,6.29126043,140.07,140.06,7.13979722]
[1750467408224,6.29126043,140.07,140.04,18.25204227]
[1750467408447,6.29126043,140.06,140.04,18.25204227]
[1750467412841,6.29126043,140.06,140.04,25.39285917]
[1750467413212,6.29126043,140.05,140.04,24.99285917]
[1750467413613,7.01126043,140.05,140.04,24.99285917]
[1750467415108,7.01126043,140.05,140.04,17.85204227]
[1750467415903,0.72,140.05,140.04,17.85204227]
[1750467416118,7.01126043,140.05,140.04,17.85204227]
[1750467442761,6.29126043,140.05,140.04,17.85204227]
[1750467443829,7.00126043,140.05,140.04,17.85204227]
[1750467449337,7.00126043,140.05,140.04,6.2]
[1750467451767,7.00126043,140.05,140.04,13.3408169]
[1750467458972,6.29126043,140.05,140.04,13.3408169]
[1750467466475,7.01126043,140.05,140.04,13.3408169]
[1750467467377,6.29126043,140.05,140.04,13.3408169]
[1750467472676,7.01126043,140.05,140.04,13.3408169]
[1750467479102,6.29126043,140.05,140.04,31.19285917]
[1750467479304,6.29126043,140.05,140.04,31.59285917]
[1750467479609,6.29126043,140.05,140.04,31.19285917]
[1750467480272,6.29126043,140.05,140.04,31.59285917]
[1750467481095,6.29126043,140.05,140.04,31.19285917]
[1750467482199,6.29126043,140.06,140.04,31.19285917]
[1750467482411,7.03126043,140.06,140.04,31.19285917]
[1750467483310,6.29126043,140.05,140.04,31.19285917]
[1750467484004,0.74,140.05,140.04,31.19285917]
[1750467484183,7.03126043,140.05,140.04,31.19285917]
[1750467485682,7.03126043,140.05,140.04,31.15285917]
[1750467502707,0.74,140.04,140.03,7.14124265]
[1750467502908,6.29126043,140.04,140.03,7.14124265]
[1750467503145,12.38030332,140.04,140.03,7.14124265]
[1750467503323,0.74,140.03,140.02,7.14183688]
[1750467503522,7.03126043,140.03,140.02,7.14183688]
[1750467504441,6.29126043,140.03,140.02,7.14183688]
[1750467504648,11.6401563,140.03,140.02,7.14183688]
[1750467505430,6.29126043,140.03,140.02,25.39642908]
[1750467506034,6.29126043,140.03,140.02,24.99642908]
[1750467506222,7.03126043,140.03,140.02,24.99642908]
[1750467507245,12.37996265,140.03,140.02,24.99642908]
[1750467507446,12.37996265,140.03,140.02,17.8545922]
[1750467507626,7.03126043,140.03,140.02,17.8545922]
[1750467508036,12.37551021,140.03,140.02,17.8545922]
[1750467509232,7.03126043,140.03,140.02,17.8545922]
[1750467509724,0.74,140.02,140.01,7.14234697]
[1750467510045,7.03126043,140.02,140.01,7.14234697]
[1750467511445,23.83126043,140.02,140.01,7.14234697]
[1750467515254,7.03126043,140.02,140.01,7.14234697]
[1750467535057,12.36954862,140.02,140.01,7.14234697]
[1750467535278,12.36954861,140.02,140.01,7.14234697]
[1750467535571,12.36950932,140.02,140.01,7.14234697]
[1750467535777,7.03126043,140.02,140.01,7.14234697]
[1750467536145,12.37054269,140.02,140.01,7.14234697]
[1750467536348,12.3706259,140.02,140.01,7.14234697]
[1750467536665,7.03126043,140.02,140.01,7.14234697]
[1750467537074,12.37064439,140.02,140.01,7.14234697]
[1750467539263,12.37274612,140.02,140.01,7.14234697]
[1750467542281,11.63274612,140.02,140.01,7.14234697]
[1750467542468,6.29126043,140.02,140.01,7.54234697]
[1750467546564,6.29126043,140.02,140.01,7.14234697]
[1750467549577,6.29126043,140.02,140.01,7.54234697]
[1750467550984,6.29126043,140.02,140.01,7.14234697]
[1750467551167,6.29126043,140.02,140.01,7.54234697]
[1750467552381,6.29126043,140.03,140.01,60.70994927]
[1750467552580,6.29126043,140.02,140.01,60.70994927]
[1750467557088,6.29126043,140.02,140.01,24.9982144]
[1750467558465,7.02126043,140.02,140.01,24.9982144]
[1750467560772,6.29126043,140.02,140.01,24.9982144]
[1750467563292,6.29126043,140.02,140.01,25.3982144]
[1750467566779,6.29126043,140.02,140.01,24.9982144]
[1750467575482,6.99126043,140.02,140.01,24.9982144]
[1750467576087,6.29126043,140.02,140.01,24.9982144]
[1750467577107,6.99126043,140.02,140.01,24.9982144]
[1750467580413,12.33720845,140.02,140.01,7.14234697]
[1750467580787,12.3372894,140.02,140.01,7.14234697]
[1750467582519,30.98666472,140.02,140.01,7.14234697]
[1750467582710,201.15170644,140.02,139.98,23.97870174]
[1750467582917,6.29126043,139.99,139.98,23.97870174]
[1750467583217,6.99126043,139.99,139.98,23.97870174]
[1750467585022,6.99126043,139.99,139.98,31.12257943]
[1750467588312,6.29126043,139.99,139.98,31.12257943]
[1750467591401,6.29126043,139.99,139.98,31.52257943]
[1750467599214,6.29126043,139.99,139.98,31.12257943]
[1750467600330,6.29126043,139.99,139.98,31.52257943]
[1750467601738,32.29126043,139.99,139.98,31.12257943]
[1750467604640,6.29126043,139.99,139.98,31.12257943]
[1750467608218,23.09126043,140.0,139.99,0.4]
[1750467609554,16.8,140.0,139.99,7.54336738]
[1750467612528,6.29126043,140.03,140.0,0.4]
[1750467614528,6.29126043,140.03,139.99,25.00178583]
[1750467614529,6.29126043,140.03,140.01,7.14234697]
[1750467614752,6.29126043,140.03,140.02,0.4]
[1750467615759,23.09126043,140.03,140.02,7.54183688]
[1750467620943,23.09126043,140.03,140.0,24.99999999]
[1750467621137,6.29126043,140.02,140.0,24.99999999]
[1750467621342,6.97126043,140.01,140.0,24.99999999]
[1750467623641,6.97126043,140.01,140.0,17.85714285]
[1750467637374,6.29126043,140.01,140.0,17.85714285]
[1750467643481,6.29126043,140.01,140.0,23.95714285]
[1750467645879,6.29126043,140.01,140.0,31.09999999]
[1750467647684,6.29126043,140.02,140.0,31.09999999]
[1750467647869,6.29126043,140.04,140.02,7.14183688]
[1750467648187,6.29126043,140.04,140.02,7.54183688]
[1750467650568,6.29126043,140.04,140.01,25.3982144]
[1750467650967,6.29126043,140.03,140.01,24.9982144]
[1750467651182,23.09126043,140.03,140.01,24.9982144]
[1750467652990,23.09126043,140.03,140.01,25.3982144]
[1750467656699,16.8,140.03,140.01,25.3982144]
[1750467660784,16.8,140.03,140.01,24.9982144]
[1750467662947,7.02126043,140.04,140.01,50.9982144]
[1750467663606,6.29126043,140.03,140.01,50.9982144]
[1750467665272,7.02126043,140.04,140.03,26.0]
[1750467665702,7.02126043,140.04,140.03,33.14132685]
[1750467667005,6.29126043,140.04,140.03,33.14132685]
[1750467667817,7.02126043,140.04,140.03,33.14132685]
[1750467671585,6.29126043,140.04,140.03,50.99464399]
[1750467671788,0.73,140.04,140.03,50.99464399]
[1750467672200,7.02126043,140.05,140.03,50.99464399]
[1750467674719,6.29126043,140.05,140.03,50.99464399]
[1750467675010,0.73,140.04,140.03,50.99464399]
[1750467681524,6.29126043,140.05,140.03,50.99464399]
[1750467681741,7.02126043,140.05,140.03,50.99464399]
[1750467682619,6.29126043,140.05,140.03,50.99464399]
[1750467682820,7.02126043,140.04,140.03,50.99464399]
[1750467683020,6.29126043,140.05,140.03,86.70127828]
[1750467683330,7.02126043,140.05,140.03,86.70127828]
[1750467684636,7.02126043,140.05,140.04,6.1]
[1750467684938,7.02126043,140.05,140.04,13.2408169]
[1750467685138,0.73,140.05,140.04,13.2408169]
[1750467688349,7.02126043,140.05,140.04,13.2408169]
[1750467704136,12.37376878,140.05,140.04,13.2408169]
[1750467707058,6.98126043,140.05,140.04,13.2408169]
[1750467707235,12.3311061,140.05,140.04,13.2408169]
[1750467707430,6.98126043,140.05,140.04,13.2408169]
[1750467709439,12.3309009,140.05,140.04,13.2408169]
[1750467710155,6.98126043,140.05,140.04,13.2408169]
[1750467719574,12.33004091,140.05,140.04,13.2408169]
[1750467721652,5.34878048,140.05,140.04,13.2408169]
[1750467721861,5.34878048,140.05,140.04,13.6408169]
[1750467722368,2.23497723,140.05,140.04,19.93207733]
[1750467722572,0.7,140.11,140.07,26.4]
[1750467722753,0.7,140.11,140.07,32.69126043]
[1750467723366,6.99126043,140.11,140.07,32.69126043]
[1750467723674,6.99126043,140.11,140.08,24.98572244]
[1750467724348,44.24264847,140.14,140.08,66.97087207]
[1750467724663,6.99126043,140.13,140.09,6.69126043]
[1750467724845,6.99126043,140.13,140.1,6.08]
[1750467725347,43.54264847,140.14,140.1,6.08]
[1750467725348,6.99126043,140.12,140.1,6.08]
[1750467725774,6.99126043,140.12,140.11,7.1372493]
[1750467730971,6.29126043,140.12,140.11,24.98037256]
[1750467733276,0.7,140.13,140.11,24.98037256]
[1750467733579,6.29126043,140.12,140.11,24.98037256]
[1750467735769,0.7,140.14,140.11,24.98037256]
[1750467736075,0.7,140.14,140.11,31.67163299]
[1750467736869,18.64964886,140.17,140.13,6.69126043]
[1750467736870,0.7,140.17,140.13,6.69126043]
[1750467737277,0.7,140.18,140.16,26.0]
[1750467737577,0.7,140.18,140.16,32.06]
[1750467738167,6.29126043,140.18,140.16,32.06]
[1750467738363,6.99126043,140.17,140.16,32.06]
[1750467739077,6.99126043,140.17,140.16,39.19470319]
[1750467741498,6.99126043,140.18,140.16,57.03146118]
[1750467742087,6.29126043,140.18,140.16,57.03146118]
[1750467742667,6.99126043,140.2,140.16,63.72272161]
[1750467745086,0.7,140.19,140.16,63.32272161]
[1750467745392,0.7,140.19,140.16,57.03146118]
[1750467745685,6.29126043,140.2,140.16,63.72272161]
[1750467745989,6.99126043,140.2,140.16,63.72272161]
[1750467746774,0.7,140.2,140.16,63.72272161]
[1750467747287,7.89746043,140.21,140.16,63.72272161]
[1750467747582,7.89746043,140.21,140.16,63.32272161]
[1750467747583,6.99126043,140.2,140.16,63.32272161]
[1750467747772,0.7,140.19,140.16,63.32272161]
[1750467748487,0.7,140.19,140.16,63.72272161]
[1750467749788,0.7,140.19,140.16,63.32272161]
[1750467751088,6.29126043,140.19,140.16,57.03146118]
[1750467751476,0.7,140.18,140.16,57.03146118]
[1750467752292,6.29126043,140.18,140.16,57.03146118]
[1750467752473,7.04126043,140.17,140.16,57.03146118]
[1750467757173,6.29126043,140.17,140.16,57.03146118]
[1750467758498,7.04126043,140.17,140.16,24.97146118]
[1750467758692,7.04126043,140.17,140.16,31.03146118]
[1750467763410,7.04126043,140.17,140.16,13.19470319]
[1750467775207,6.29126043,140.17,140.16,13.19470319]
[1750467780809,7.04126043,140.17,140.16,13.19470319]
[1750467784493,0.72,140.2,140.16,57.43146118]
[1750467784694,7.01126043,140.18,140.16,57.03146118]
[1750467785015,6.29126043,140.17,140.16,57.03146118]
[1750467786014,7.01126043,140.17,140.16,31.03146118]
[1750467786921,0.72,140.17,140.16,31.03146118]
[1750467787102,7.01126043,140.17,140.16,31.03146118]
[1750467789423,7.01126043,140.17,140.16,13.19470319]
[1750467789424,0.72,140.17,140.16,13.19470319]
[1750467789620,7.01126043,140.17,140.16,13.19470319]
[1750467789822,12.34793644,140.17,140.16,13.19470319]
[1750467790922,12.34793644,140.17,140.16,7.13470319]
[1750467791425,12.34793644,140.17,140.15,7.13521227]
[1750467791610,12.34793644,140.16,140.15,33.13521227]
[1750467791809,7.01126043,140.16,140.15,33.13521227]
[1750467792105,12.34870153,140.16,140.15,33.13521227]
[1750467792696,36.16964886,140.15,140.14,7.13572142]
[1750467792900,0.72,140.12,140.06,12.12771218]
[1750467793101,7.01126043,140.09,140.07,23.90812649]
[1750467793401,7.01126043,140.09,140.07,49.90812649]
[1750467793402,0.72,140.09,140.07,49.90812649]
[1750467793712,6.29126043,140.09,140.07,49.90812649]
[1750467794525,6.29126043,140.09,140.07,57.04741398]
[1750467795027,9.81235586,140.09,140.07,57.04741398]
[1750467795211,9.81235586,140.09,140.07,31.04741398]
[1750467795612,9.81235586,140.09,140.07,57.04741398]
[1750467796629,9.81235586,140.09,140.07,57.44741398]
[1750467797424,9.81235586,140.1,140.09,26.0]
[1750467798634,9.81235586,140.1,140.09,33.13826825]
[1750467799439,26.61235586,140.11,140.09,33.13826825]
[1750467802630,9.81235586,140.1,140.09,33.13826825]
[1750467803233,10.53235586,140.1,140.09,33.13826825]
[1750467806032,10.53235586,140.1,140.09,7.13826825]
[1750467806224,29.18200472,140.1,140.09,7.13826825]
[1750467807230,28.46200472,140.1,140.08,7.13877784]
[1750467807432,10.53235586,140.09,140.08,7.13877784]
[1750467808312,29.18200472,140.09,140.08,7.13877784]
[1750467809439,18.64964886,140.08,140.06,7.13979722]
[1750467809736,10.53235586,140.07,140.06,7.13979722]
[1750467810139,29.18200472,140.07,140.06,7.13979722]
[1750467811809,38.99436058,140.07,140.06,7.13979722]
[1750467812226,29.18200472,140.07,140.06,7.13979722]
[1750467815652,19.36964886,140.07,140.06,7.13979722]
[1750467815819,29.18200472,140.07,140.06,7.13979722]
[1750467822057,35.44964886,140.06,140.05,6.06]
[1750467822224,29.14200472,140.06,140.05,6.06]
[1750467822546,18.64964886,140.04,140.03,7.14089995]
[1750467822718,28.46200472,140.04,140.03,7.14089995]
[1750467823045,29.14200472,140.04,140.03,7.14089995]
[1750467824954,9.81235586,140.04,140.03,7.14089995]
[1750467834562,26.61235586,140.04,140.03,7.14089995]
[1750467834856,23.08460551,140.04,140.03,7.14089995]
[1750467837863,23.76460551,140.04,140.03,7.14089995]
[1750467838447,23.08460551,140.04,140.03,7.14089995]
[1750467840272,23.76460551,140.04,140.03,7.14089995]
[1750467842977,23.08460551,140.04,140.03,7.14089995]
[1750467845349,23.82460551,140.04,140.03,7.14089995]
[1750467851980,29.17009441,140.04,140.03,7.14089995]
[1750467857488,29.17027451,140.04,140.03,7.14089995]
[1750467860284,23.82460551,140.04,140.03,7.14089995]
[1750467860590,29.16951681,140.04,140.03,7.14089995]
[1750467863280,29.17014601,140.04,140.03,7.14089995]
[1750467864900,23.82460551,140.04,140.03,7.14089995]
[1750467865200,29.17023324,140.04,140.03,7.14089995]
[1750467865695,47.8198821,140.04,140.03,7.14089995]
[1750467866110,47.81544808,140.04,140.03,7.14089995]
[1750467867083,47.81544808,140.04,140.01,7.14234697]
[1750467867294,0.74,140.02,140.01,7.14234697]
[1750467870007,7.02460551,140.03,140.01,7.14234697]
[1750467872677,41.73425437,140.04,140.01,24.9982144]
[1750467872897,42.43425437,140.04,140.01,24.9982144]
[1750467873082,16.8,140.03,140.01,24.9982144]
[1750467874984,16.8,140.06,140.01,25.3982144]
[1750467875285,16.8,140.06,140.04,26.4]
[1750467875475,16.8,140.06,140.04,26.0]
[1750467875672,17.5,140.06,140.04,26.0]
[1750467876186,17.5,140.06,140.05,7.14030703]
[1750467877409,16.8,140.06,140.05,7.14030703]
[1750467882695,17.5,140.06,140.05,7.14030703]
[1750467888911,23.78460551,140.06,140.05,7.14030703]
[1750467890714,6.98460551,140.06,140.05,7.14030703]
[1750467890913,25.63425437,140.06,140.05,7.14030703]
[1750467891217,19.34964886,140.04,140.03,7.14132685]
[1750467891410,25.63425437,140.04,140.03,7.14132685]
[1750467891588,18.64964886,140.03,139.97,8.82176102]
[1750467891793,172.37602204,140.07,139.97,6.04]
[1750467891794,0.7,140.0,139.97,6.04]
[1750467892019,0.7,140.0,139.99,26.0]
[1750467892904,0.7,140.0,139.99,33.14336738]
[1750467893918,6.28460551,140.02,139.99,51.00178583]
[1750467895819,6.28460551,140.02,139.99,51.40178583]
[1750467896017,6.98460551,140.02,139.99,51.00178583]
[1750467896622,16.8,140.01,139.99,51.00178583]
[1750467900426,17.5,140.01,139.99,51.00178583]
[1750467900899,16.8,140.01,139.99,51.00178583]
[1750467902534,16.8,140.0,139.99,51.00178583]
[1750467904729,16.8,140.04,139.99,93.00322825]
[1750467904919,16.8,140.04,140.0,6.28460551]
[1750467905097,16.8,140.04,140.0,6.68460551]
[1750467905294,16.8,140.04,140.03,26.0]
[1750467905913,16.8,140.04,140.03,33.14132685]
[1750467906327,17.51,140.04,140.03,7.14132685]
[1750467907329,17.51,140.04,140.02,7.14183688]
[1750467910335,23.79460551,140.04,140.02,7.14183688]
[1750467910935,17.51,140.04,140.02,7.14183688]
[1750467911234,23.79460551,140.04,140.02,7.14183688]
[1750467912031,6.99460551,140.03,140.02,7.14183688]
[1750467916232,166.01534886,140.06,140.02,7.14183688]
[1750467916233,24.93425437,140.04,140.02,7.14183688]
[1750467916440,25.64425437,140.04,140.02,7.14183688]
[1750467918025,145.7,140.06,140.02,24.99642908]
[1750467918321,152.69460551,140.06,140.02,25.39642908]
[1750467918534,6.28460551,140.05,140.02,24.99642908]
[1750467918736,0.71,140.04,140.02,24.99642908]
[1750467919543,152.69460551,140.06,140.02,25.39642908]
[1750467919742,151.98460551,140.06,140.02,24.99642908]
[1750467919925,151.98460551,140.06,140.02,25.39642908]
[1750467920131,151.98460551,140.06,140.03,0.4]
[1750467920445,16.8,140.05,140.04,26.0]
[1750467922551,16.8,140.05,140.04,33.1408169]
[1750467924448,23.08460551,140.05,140.04,33.1408169]
[1750467924660,23.79460551,140.05,140.04,33.1408169]
[1750467926352,6.99460551,140.05,140.04,33.1408169]
[1750467926543,0.71,140.05,140.04,33.1408169]
[1750467926846,6.99460551,140.05,140.04,33.1408169]
[1750467929151,0.71,140.05,140.04,33.1408169]
[1750467929351,6.99460551,140.05,140.04,33.1408169]
[1750467929551,145.7,140.06,140.04,33.1408169]
[1750467929734,145.7,140.06,140.04,33.5408169]
[1750467930129,145.7,140.06,140.04,33.1408169]
[1750467931333,146.41,140.06,140.04,33.1408169]
[1750467931534,151.98460551,140.06,140.04,33.1408169]
[1750467932044,152.70460551,140.06,140.04,33.1408169]
[1750467932246,7.00460551,140.06,140.04,33.1408169]
[1750467934851,0.72,140.06,140.04,33.1408169]
[1750467935051,6.28460551,140.07,140.04,50.99285917]
[1750467935235,7.00460551,140.07,140.04,50.99285917]
[1750467935431,6.28460551,140.08,140.04,51.39285917]
[1750467935658,7.00460551,140.08,140.04,51.39285917]
[1750467937859,18.64964886,140.09,140.04,51.39285917]
[1750467937860,7.00460551,140.07,140.04,50.99285917]
[1750467939036,0.72,140.07,140.04,50.99285917]
[1750467939235,6.28460551,140.07,140.04,50.99285917]
[1750467939752,7.00460551,140.07,140.04,50.99285917]
[1750467944136,6.28460551,140.07,140.04,51.39285917]
[1750467944341,7.00460551,140.08,140.04,51.39285917]
[1750467944865,25.65425437,140.1,140.06,6.68460551]
[1750467945040,16.8,140.07,140.06,6.68460551]
[1750467945240,25.65425437,140.1,140.06,6.68460551]
[1750467945960,19.36964886,140.1,140.07,26.0]
[1750467946165,19.36964886,140.1,140.08,7.13877784]
[1750467946340,18.64964886,140.1,140.08,7.13877784]
[1750467947048,18.14964886,140.1,140.08,7.13877784]
[1750467948256,18.86964886,140.1,140.08,7.13877784]
[1750467948657,25.15425437,140.1,140.08,7.13877784]
[1750467949873,16.8,140.09,140.08,7.13877784]
[1750467951975,16.8,140.09,140.08,7.53877784]
[1750467952162,16.8,140.09,140.08,7.13877784]
[1750467955983,151.98460551,140.11,140.08,24.98572244]
[1750467956174,0.72,140.1,140.08,24.98572244]
[1750467957476,151.98460551,140.11,140.08,24.98572244]
[1750467957664,145.7,140.11,140.08,25.38572244]
[1750467958054,0.72,140.14,140.11,26.0]
[1750467958256,18.64964886,140.13,140.11,26.0]
[1750467959165,19.36964886,140.13,140.11,26.0]
[1750467960091,19.36964886,140.13,140.12,7.13673993]
[1750467960392,151.98460551,140.15,140.12,24.97858977]
[1750467960393,0.72,140.14,140.12,24.97858977]
[1750467966165,151.98460551,140.15,140.12,24.97858977]
[1750467966364,0.69,140.14,140.12,24.97858977]
[1750467966777,19.33964886,140.16,140.14,26.0]
[1750467966969,19.33964886,140.16,140.15,7.13521227]
[1750467967492,25.62425437,140.16,140.15,7.13521227]
[1750467968494,19.33964886,140.16,140.15,7.13521227]
[1750467968693,25.62425437,140.16,140.15,7.13521227]
[1750467969998,18.64964886,140.16,140.15,7.13521227]
[1750467970369,19.33964886,140.16,140.15,7.13521227]
[1750467973272,25.62425437,140.16,140.15,7.13521227]
[1750467974579,19.33964886,140.16,140.15,7.13521227]
[1750467978485,18.64964886,140.16,140.15,7.13521227]
[1750467979498,19.33964886,140.16,140.15,7.13521227]
[1750467982704,24.93425437,140.16,140.1,31.16208286]
[1750467982894,0.69,140.11,140.1,7.13775874]
[1750467983086,6.97460551,140.11,140.1,7.13775874]
[1750467983272,6.28460551,140.11,140.08,50.98558336]
[1750467983480,16.8,140.1,140.08,50.98558336]
[1750467983801,0.69,140.09,140.08,50.98558336]
[1750467984619,16.8,140.1,140.08,50.98558336]
[1750467984774,16.8,140.1,140.09,9.80822865]
[1750467986017,16.8,140.1,140.09,33.13826825]
[1750467986190,16.8,140.1,140.09,42.9464969]
[1750467994791,17.54,140.1,140.09,33.13826825]
[1750467994992,17.54,140.1,140.09,7.13826825]
[1750467995189,29.19787751,140.1,140.09,7.13826825]
[1750467995413,29.19787751,140.1,140.09,33.13826825]
[1750467996308,0.74,140.1,140.09,33.13826825]
[1750468005106,6.27882838,140.11,140.09,33.13826825]
[1750468005516,0.74,140.1,140.09,33.13826825]
[1750468010703,0.74,140.1,140.08,7.13877784]
[1750468011608,6.27882838,140.11,140.08,7.13877784]
[1750468011931,0.74,140.1,140.08,7.13877784]
[1750468012103,17.54,140.09,140.08,7.13877784]
[1750468014529,16.8,140.09,140.08,7.13877784]
[1750468015029,16.8,140.09,140.08,13.41760622]
[1750468016612,16.8,140.09,140.08,7.13877784]
[1750468018036,0.74,140.1,140.08,7.13877784]
[1750468019140,18.64964886,140.1,140.08,7.13877784]
[1750468019318,0.74,140.09,140.08,7.13877784]
[1750468020426,19.38964886,140.09,140.07,13.31922251]
[1750468020626,0.74,140.07,140.06,26.0]
[1750468020944,0.74,140.07,140.04,6.2]
[1750468020945,0.74,140.06,140.04,13.3408169]
[1750468021230,0.74,140.05,140.04,13.3408169]
[1750468021435,0.74,140.03,140.01,6.2]
[1750468021607,0.74,140.03,140.01,32.2]
[1750468022214,0.74,140.03,140.02,7.14183688]
[1750468022431,19.36964886,140.04,140.02,7.14183688]
[1750468022609,145.7,140.08,140.02,7.14183688]
[1750468022814,145.7,140.07,140.03,10.21627126]
[1750468023025,155.51627126,140.07,140.03,9.81627126]
[1750468023228,0.72,140.06,140.02,24.99642908]
[1750468023434,0.72,140.06,140.02,34.81270034]
[1750468023632,0.72,140.06,140.02,35.21270034]
[1750468024940,155.51627126,140.07,140.04,33.1408169]
[1750468025144,156.23627126,140.07,140.04,33.1408169]
[1750468026753,16.8,140.06,140.04,33.1408169]
[1750468027048,17.52,140.06,140.04,33.1408169]
[1750468027428,0.72,140.05,140.04,33.1408169]
[1750468029342,0.72,140.06,140.04,33.1408169]
[1750468030951,145.7,140.07,140.04,61.20913043]
[1750468033426,18.64964886,140.08,140.04,61.20913043]
[1750468033816,18.64964886,140.08,140.05,9.81627126]
[1750468034021,0.72,140.09,140.05,10.21627126]
[1750468034653,18.64964886,140.09,140.06,10.21627126]
[1750468034857,146.42,140.1,140.07,7.13928749]
[1750468035225,146.42,140.1,140.07,50.98750623]
[1750468035450,0.72,140.09,140.07,50.98750623]
[1750468035949,146.42,140.1,140.07,50.98750623]
[1750468036156,146.42,140.1,140.07,60.80377749]
[1750468036462,146.42,140.1,140.07,67.00377749]
[1750468038451,0.72,140.09,140.07,57.18750623]
[1750468038666,16.8,140.08,140.07,57.18750623]
[1750468040722,16.8,140.08,140.07,67.00377749]
[1750468042546,16.8,140.08,140.07,57.18750623]
[1750468042746,16.8,140.08,140.07,67.00377749]
[1750468043656,16.8,140.08,140.07,57.18750623]
[1750468044559,156.23627126,140.1,140.07,57.18750623]
[1750468044860,152.69969568,140.1,140.07,57.18750623]
[1750468045365,151.97969568,140.1,140.07,57.18750623]
[1750468045542,0.72,140.09,140.07,57.18750623]
[1750468046958,5.35493944,140.08,140.07,57.18750623]
[1750468048338,6.07493944,140.08,140.07,57.18750623]
[1750468048531,31.00428398,140.08,140.07,6.2]
[1750468048734,33.68032634,140.08,140.07,6.2]
[1750468049230,18.64964886,140.07,140.05,7.14012851]
[1750468049430,12.35463512,140.06,140.05,7.14012851]
[1750468050039,15.03092777,140.06,140.05,7.14012851]
[1750468050444,6.99969568,140.06,140.05,7.14012851]
[1750468050642,0.72,140.06,140.05,7.14012851]
[1750468051056,9.81704884,140.07,140.05,7.14012851]
[1750468051268,0.72,140.07,140.05,7.14012851]
[1750468051435,19.36964886,140.08,140.05,7.14012851]
[1750468051634,2.2583,140.09,140.05,17.64717735]
[1750468051864,5.3364459,140.08,140.05,17.64717735]
[1750468052069,0.72,140.09,140.05,17.64717735]
[1750468052269,5.33647129,140.08,140.05,17.64717735]
[1750468052469,0.72,140.09,140.05,17.64717735]
[1750468052676,5.33641366,140.08,140.05,35.49794493]
[1750468052976,0.72,140.09,140.05,35.49794493]
[1750468053148,5.33641494,140.08,140.05,35.49794493]
[1750468053353,16.8,140.06,140.05,34.80794493]
[1750468053745,16.8,140.06,140.05,40.98794493]
[1750468055874,16.8,140.06,140.05,41.70794493]
[1750468067188,16.8,140.11,140.08,26.0]
[1750468067486,16.8,140.1,140.09,9.81704884]
[1750468067857,16.8,140.1,140.09,17.67531709]
[1750468068570,16.8,140.1,140.09,16.95531709]
[1750468076891,16.8,140.1,140.09,19.5747033]
[1750468077584,16.8,140.1,140.09,20.2947033]
[1750468080468,16.8,140.13,140.12,26.0]
[1750468080669,16.8,140.13,140.12,32.27643505]
[1750468081096,16.8,140.13,140.12,39.41317498]
[1750468083073,16.8,140.13,140.12,40.14317498]
[1750468086573,16.8,140.13,140.12,39.41317498]
[1750468092477,17.54,140.13,140.12,33.13673993]
[1750468092806,17.54,140.13,140.12,39.29673993]